[Event "Pobeskydi 2026"]
[Site "Frydek-Mistek, Czech Republic"]
[Date "2026.04.06"]
[Round "9.11"]
[White "Durovka, Marek"]
[Black "Bartova, Hana"]
[Result "1-0"]
[TimeControl "90 min+30s/move"]
[WhiteTitle "-"]
[BlackTitle "-"]
[WhiteFideId "14959542"]
[BlackFideId "23732695"]
[WhiteElo "2054"]
[BlackElo "1823"]

1. d4 {[%clk 01:30:37]} {[%emt 00:00:15]} e6 {[%clk 01:30:43]} {[%emt
00:00:25]} 2. c4 {[%clk 01:29:50]} {[%emt 00:01:17]} Nf6 {[%clk 01:31:01]}
{[%emt 00:00:12]} 3. Nc3 {[%clk 01:30:12]} {[%emt 00:00:08]} d5 {[%clk
01:31:16]} {[%emt 00:00:15]} 4. cxd5 {[%clk 01:29:53]} {[%emt 00:00:49]} exd5
{[%clk 01:31:34]} {[%emt 00:00:11]} 5. Bg5 {[%clk 01:30:19]} {[%emt 00:00:05]}
Be7 {[%clk 01:31:23]} {[%emt 00:00:41]} 6. e3 {[%clk 01:30:41]} {[%emt
00:00:07]} c6 {[%clk 01:31:21]} {[%emt 00:00:33]} 7. Bd3 {[%clk 01:31:00]}
{[%emt 00:00:11]} Bg4 {[%clk 01:28:09]} {[%emt 00:03:42]} 8. Qc2 {[%clk
01:26:30]} {[%emt 00:05:00]} Bh5 {[%clk 01:27:34]} {[%emt 00:01:04]} 9. Nf3
{[%clk 01:11:44]} {[%emt 00:15:16]} Bg6 {[%clk 01:25:25]} {[%emt 00:02:40]} 10.
O-O {[%clk 01:10:04]} {[%emt 00:02:10]} Ne4 {[%clk 01:19:01]} {[%emt 00:06:54]}
11. Bf4 {[%clk 01:09:12]} {[%emt 00:01:21]} Nxc3 {[%clk 01:17:09]} {[%emt
00:02:22]} 12. bxc3 {[%clk 01:08:19]} {[%emt 00:01:22]} Nd7 {[%clk 01:13:34]}
{[%emt 00:04:07]} 13. Rae1 {[%clk 01:00:22]} {[%emt 00:08:27]} Nf6 {[%clk
01:08:38]} {[%emt 00:05:25]} 14. Ne5 {[%clk 00:59:49]} {[%emt 00:01:04]} Bxd3
{[%clk 01:07:25]} {[%emt 00:01:43]} 15. Qxd3 {[%clk 00:59:41]} {[%emt
00:00:31]} O-O {[%clk 01:06:46]} {[%emt 00:01:16]} 16. Rb1 {[%clk 00:50:07]}
{[%emt 00:10:04]} Qc8 {[%clk 01:04:29]} {[%emt 00:02:44]} 17. c4 {[%clk
00:49:59]} {[%emt 00:00:41]} dxc4 {[%clk 01:02:46]} {[%emt 00:02:14]} 18. Nxc4
{[%clk 00:41:52]} {[%emt 00:08:37]} Rd8 {[%clk 00:59:38]} {[%emt 00:03:36]} 19.
Rfc1 {[%clk 00:41:09]} {[%emt 00:01:14]} b6 {[%clk 00:51:13]} {[%emt 00:08:56]}
20. Ne5 {[%clk 00:35:05]} {[%emt 00:06:34]} c5 {[%clk 00:51:30]} {[%emt
00:00:12]} 21. Qb3 {[%clk 00:33:23]} {[%emt 00:02:11]} Rf8 {[%clk 00:51:43]}
{[%emt 00:00:17]} 22. d5 {[%clk 00:32:42]} {[%emt 00:01:12]} Bd6 {[%clk
00:45:37]} {[%emt 00:06:35]} 23. Ng6 {[%clk 00:28:07]} {[%emt 00:05:06]} hxg6
{[%clk 00:45:53]} {[%emt 00:00:13]} 24. Bxd6 {[%clk 00:28:34]} {[%emt
00:00:04]} Re8 {[%clk 00:46:15]} {[%emt 00:00:06]} 25. Bg3 {[%clk 00:25:32]}
{[%emt 00:03:30]} Qf5 {[%clk 00:45:11]} {[%emt 00:01:36]} 26. Rd1 {[%clk
00:25:26]} {[%emt 00:00:38]} Rad8 {[%clk 00:45:08]} {[%emt 00:00:33]} 27. d6
{[%clk 00:19:38]} {[%emt 00:06:18]} Rd7 {[%clk 00:45:31]} {[%emt 00:00:07]} 28.
f3 {[%clk 00:18:21]} {[%emt 00:01:47]} Qe6 {[%clk 00:43:52]} {[%emt 00:02:09]}
29. e4 {[%clk 00:10:46]} {[%emt 00:08:05]} Nh5 {[%clk 00:43:00]} {[%emt
00:01:22]} 30. Qd5 {[%clk 00:10:51]} {[%emt 00:00:24]} Nxg3 {[%clk 00:38:45]}
{[%emt 00:04:45]} 31. hxg3 {[%clk 00:11:18]} {[%emt 00:00:04]} Qe5 {[%clk
00:38:56]} {[%emt 00:00:15]} 32. Qxe5 {[%clk 00:09:41]} {[%emt 00:02:12]} Rxe5
{[%clk 00:39:17]} {[%emt 00:00:08]} 33. Rb2 {[%clk 00:09:41]} {[%emt 00:00:29]}
Kf8 {[%clk 00:38:23]} {[%emt 00:01:25]} 34. Kf2 {[%clk 00:07:50]} {[%emt
00:02:21]} Re6 {[%clk 00:35:49]} {[%emt 00:03:05]} 35. Rbd2 {[%clk 00:08:19]}
{[%emt 00:00:02]} Ke8 {[%clk 00:35:32]} {[%emt 00:00:46]} 36. Rd5 {[%clk
00:08:01]} {[%emt 00:00:48]} f5 {[%clk 00:29:11]} {[%emt 00:06:51]} 37. e5
{[%clk 00:07:55]} {[%emt 00:00:36]} Kd8 {[%clk 00:29:30]} {[%emt 00:00:10]} 38.
f4 {[%clk 00:06:27]} {[%emt 00:01:58]} Kc8 {[%clk 00:29:49]} {[%emt 00:00:12]}
39. Rb1 {[%clk 00:06:40]} {[%emt 00:00:17]} Rd8 {[%clk 00:29:05]} {[%emt
00:01:14]} 40. Rd3 {[%clk 00:03:52]} {[%emt 00:03:18]} Kb7 {[%clk 00:23:11]}
{[%emt 00:06:25]} 41. Rh1 {[%clk 00:03:59]} {[%emt 00:00:22]} c4 {[%clk
00:21:46]} {[%emt 00:01:55]} 42. Rd4 {[%clk 00:02:42]} {[%emt 00:01:46]} b5
{[%clk 00:21:43]} {[%emt 00:00:34]} 43. Rh7 {[%clk 00:02:52]} {[%emt 00:00:21]}
Rd7 {[%clk 00:21:52]} {[%emt 00:00:21]} 44. Ke3 {[%clk 00:03:16]} {[%emt
00:00:04]} Re8 {[%clk 00:21:03]} {[%emt 00:01:20]} 45. Rd5 {[%clk 00:03:08]}
{[%emt 00:00:38]} Kc6 {[%clk 00:20:02]} {[%emt 00:01:31]} 46. Kd4 {[%clk
00:03:17]} {[%emt 00:00:21]} a6 {[%clk 00:20:25]} {[%emt 00:00:07]} 47. Rc5+
{[%clk 00:03:23]} {[%emt 00:00:25]} Kb6 {[%clk 00:20:35]} {[%emt 00:00:16]} 48.
Kd5 {[%clk 00:03:48]} {[%emt 00:00:07]} Red8 {[%clk 00:20:55]} {[%emt
00:00:11]} 49. Rc6+ {[%clk 00:04:07]} {[%emt 00:00:11]} Ka5 {[%clk 00:20:27]}
{[%emt 00:00:58]} 50. e6 {[%clk 00:04:18]} {[%emt 00:00:20]} Rb7 {[%clk
00:20:20]} {[%emt 00:00:36]} 51. d7 {[%clk 00:04:05]} {[%emt 00:00:43]} Rbxd7
{[%clk 00:20:16]} {[%emt 00:00:34]} 52. exd7 {[%clk 00:04:29]} {[%emt
00:00:06]} Rxd7 {[%clk 00:20:41]} {[%emt 00:00:05]} 53. Ke5 {[%clk 00:01:41]}
{[%emt 00:03:18]} Rd2 {[%clk 00:20:15]} {[%emt 00:00:56]} 54. Rh8 {[%clk
00:01:43]} {[%emt 00:00:27]} Rxa2 {[%clk 00:20:10]} {[%emt 00:00:36]} 55. Rxa6+
{[%clk 00:02:02]} {[%emt 00:00:12]} 1-0